fUSD/lending_fUSD_20240712
["ID","MTS","AMOUNT","RATE_DAILY","PERIOD"]
[331752263,1720752660132,-500.0,0.00013798,2]
[331752264,1720752660141,-194.807648,0.00013798,2]
[331752265,1720752660150,-194.807648,0.00013798,2]
[331752266,1720752660159,-194.807648,0.00013798,2]
[331752267,1720752660171,-194.807648,0.00013798,2]
[331752268,1720752660180,-194.807648,0.00013798,2]
[331752269,1720752660190,-500.0,0.00013798,2]
[331752270,1720752660199,-194.807648,0.00013798,2]
[331752271,1720752660209,-609.37602042,0.00013798,2]
[331752272,1720752660219,-194.807649,0.00013798,2]
[331752273,1720752660229,-500.0,0.00013798,2]
[331752274,1720752660238,-507.38966824,0.00013798,2]
[331752275,1720752660254,-503.27841884,0.00013798,2]
[331752276,1720752660275,-151.0,0.00013798,2]
[331752277,1720752660292,-151.0,0.00013798,2]
[331752278,1720752660313,-238.923606,0.00013798,2]
[331752279,1720752660332,-500.0,0.00013798,2]
[331752280,1720752660349,-500.0,0.00013798,2]
[331752281,1720752660367,-672.639123,0.00013798,2]
[331752282,1720752660381,-672.639123,0.00013798,2]
[331752283,1720752660401,-672.639123,0.00013798,2]
[331752284,1720752660423,-672.639123,0.00013798,2]
[331752285,1720752660435,-501.74513012,0.00013798,2]
[331752286,1720752660452,-672.639123,0.00013798,2]
[331752287,1720752660467,-500.0,0.00013798,2]
[331752288,1720752660484,-500.0,0.00013798,2]
[331752289,1720752660501,-672.639123,0.00013798,2]
[331752290,1720752660516,-672.639123,0.00013798,2]
[331752291,1720752660531,-672.639123,0.00013798,2]
[331752292,1720752660545,-672.639123,0.00013798,2]
[331752293,1720752660559,-672.639122,0.00013798,2]
[331752294,1720752660575,-461.143543,0.00013798,2]
[331752295,1720752660588,-461.143543,0.00013798,2]
[331752296,1720752660602,-500.0,0.00013798,2]
[331752297,1720752660616,-461.143543,0.00013798,2]
[331752298,1720752660630,-461.143543,0.00013798,2]
[331752299,1720752660644,-461.143543,0.00013798,2]
[331752300,1720752660657,-506.62132408,0.00013798,2]
[331752301,1720752660673,-461.143543,0.00013798,2]
[331752302,1720752660688,-500.0,0.00013798,2]
[331752303,1720752660702,-461.143543,0.00013798,2]
[331752304,1720752660716,-461.143543,0.00013798,2]
[331752305,1720752660730,-461.143543,0.00013798,2]
[331752306,1720752660745,-500.0,0.00013798,2]
[331752307,1720752660761,-461.14354,0.00013798,2]
[331752308,1720752660775,-500.0,0.00013798,2]
[331752309,1720752660790,-503.68159126,0.00013798,2]
[331752310,1720752660804,-500.0,0.00013798,2]
[331752311,1720752660819,-500.0,0.00013798,2]
[331752312,1720752660832,-500.0,0.00013798,2]
[331752313,1720752660847,-500.0,0.00013798,2]
[331752314,1720752660862,-376.98084646,0.00013798,2]
[331752315,1720752660875,-500.0,0.00013798,2]
[331752316,1720752660889,-528.60498177,0.00013798,2]
[331752317,1720752660903,-500.22155915,0.00013798,2]
[331752318,1720752660919,-151.0,0.00013798,2]
[331752319,1720752660934,-500.0,0.00013798,2]
[331752320,1720752660948,-151.0,0.00013798,2]
[331752321,1720752660962,-151.0,0.00013798,2]
[331752322,1720752660976,-151.0,0.00013798,2]
[331752323,1720752660990,-151.0,0.00013798,2]
[331752324,1720752661004,-500.0,0.00013798,2]
[331752325,1720752661018,-500.0,0.00013798,2]
[331752326,1720752661033,-500.0,0.00013798,2]
[331752327,1720752661051,-500.37476796,0.00013798,2]
[331752328,1720752661065,-500.0,0.00013798,2]
[331752329,1720752661080,-500.0,0.00013798,2]
[331752330,1720752661094,-500.0,0.00013798,2]
[331752331,1720752661109,-500.0,0.00013798,2]
[331752332,1720752661123,-334.071116,0.00013798,2]
[331752333,1720752661138,-334.071116,0.00013798,2]
[331752334,1720752661151,-334.071116,0.00013798,2]
[331752335,1720752661165,-334.071116,0.00013798,2]
[331752336,1720752661285,-500.0,0.00013798,2]
[331752337,1720752661294,-500.0,0.00013798,2]
[331752338,1720752661304,-160.752261,0.00013798,2]
[331752339,1720752661313,-160.752261,0.00013798,2]
[331752340,1720752661322,-160.752261,0.00013798,2]
[331752341,1720752661332,-160.752261,0.00013798,2]
[331752342,1720752661341,-334.071116,0.00013798,2]
[331752343,1720752661350,-334.071116,0.00013798,2]
[331752344,1720752661359,-334.071116,0.00013798,2]
[331752345,1720752661368,-334.071118,0.00013798,2]
[331752346,1720752661377,-500.0,0.00013798,2]
[331752347,1720752661387,-160.752261,0.00013798,2]
[331752348,1720752661395,-160.752261,0.00013798,2]
[331752349,1720752661405,-549.36639442,0.00013798,2]
[331752350,1720752661414,-500.0,0.00013798,2]
[331752351,1720752661423,-160.752261,0.00013798,2]
[331752352,1720752661432,-160.752252,0.00013798,2]
[331752353,1720752661441,-504.19585623,0.00013798,2]
[331752354,1720752661450,-502.90671824,0.00013798,2]
[331752355,1720752661459,-500.0,0.00013798,2]
[331752356,1720752661468,-500.0,0.00013798,2]
[331752357,1720752661477,-500.0,0.00013798,2]
[331752358,1720752661487,-501.47475498,0.00013798,2]
[331752359,1720752661497,-1229.595116,0.00013798,2]
[331752360,1720752661510,-1229.595116,0.00013798,2]
[331752361,1720752661519,-1229.595116,0.00013798,2]
[331752362,1720752661528,-1229.595116,0.00013798,2]
[331752363,1720752661538,-505.82224213,0.00013798,2]
[331752364,1720752661549,-151.0,0.00013798,2]
[331752365,1720752661558,-151.0,0.00013798,2]
[331752366,1720752661568,-151.0,0.00013798,2]
[331752367,1720752661578,-220.082618,0.00013798,2]
[331752368,1720752661589,-526.16248807,0.00013798,2]
[331752369,1720752661598,-220.082618,0.00013798,2]
[331752370,1720752661607,-220.082618,0.00013798,2]
[331752371,1720752661617,-151.0,0.00013798,2]
[331752372,1720752661626,-220.082618,0.00013798,2]
[331752373,1720752661636,-1229.595116,0.00013798,2]
[331752374,1720752661646,-500.0,0.00013798,2]
[331752375,1720752661655,-1229.595116,0.00013798,2]
[331752376,1720752661667,-831.207922,0.00013798,2]
[331752377,1720752661677,-1229.595116,0.00013798,2]
[331752378,1720752661688,-831.207922,0.00013798,2]
[331752379,1720752661697,-500.0,0.00013798,2]
[331752380,1720752661708,-1229.59511,0.00013798,2]
[331752381,1720752661718,-831.207922,0.00013798,2]
[331752382,1720752661728,-831.207922,0.00013798,2]
[331752383,1720752661738,-569.40644195,0.00013798,2]
[331752384,1720752661748,-500.0,0.00013798,2]
[331752385,1720752661757,-831.207922,0.00013798,2]
[331752386,1720752661767,-831.207922,0.00013798,2]
[331752387,1720752661776,-502.79335285,0.00013798,2]
[331752388,1720752661785,-220.082618,0.00013798,2]
[331752389,1720752661795,-220.082618,0.00013798,2]
[331752390,1720752661804,-831.207922,0.00013798,2]
[331752391,1720752661814,-220.082618,0.00013798,2]
[331752392,1720752661823,-831.207917,0.00013798,2]
[331752393,1720752661833,-220.082615,0.00013798,2]
[331752394,1720752661842,-500.0,0.00013798,2]
[331752395,1720752661851,-506.11803902,0.00013798,2]
[331752396,1720752661860,-500.17103902,0.00013798,2]
[331752397,1720752661869,-500.0,0.00013798,2]
[331752398,1720752661878,-500.0,0.00013798,2]
[331752399,1720752661887,-507.37722102,0.00013798,2]
[331752400,1720752661897,-500.0,0.00013798,2]
[331752401,1720752661906,-500.0,0.00013798,2]
[331752402,1720752661917,-500.0,0.00013798,2]
[331752403,1720752661926,-500.0,0.00013798,2]
[331752404,1720752661936,-500.78100531,0.00013798,2]
[331752405,1720752661945,-509.82003407,0.00013798,2]
[331752406,1720752661954,-500.0,0.00013798,2]
[331752407,1720752661964,-353.333662,0.00013798,2]
[331752408,1720752661974,-500.0,0.00013798,2]
[331752409,1720752661984,-353.333662,0.00013798,2]
[331752410,1720752661994,-500.0,0.00013798,2]
[331752411,1720752662005,-353.333662,0.00013798,2]
[331752412,1720752662017,-500.1446233,0.00013798,2]
[331752413,1720752662027,-2426.79704,0.00013798,2]
[331752414,1720752662037,-2426.79704,0.00013798,2]
[331752415,1720752662046,-2426.79704,0.00013798,2]
[331752416,1720752662055,-353.333662,0.00013798,2]
[331752417,1720752662065,-2426.79704,0.00013798,2]
[331752418,1720752662075,-516.1254236,0.00013798,2]
[331752419,1720752662084,-2426.79704,0.00013798,2]
[331752420,1720752662093,-500.0,0.00013798,2]
[331752421,1720752662108,-353.333662,0.00013798,2]
[331752422,1720752662117,-353.333662,0.00013798,2]
[331752423,1720752662126,-2426.79704,0.00013798,2]
[331752424,1720752662135,-353.333662,0.00013798,2]
[331752425,1720752662145,-2426.79704,0.00013798,2]
[331752426,1720752662154,-353.333654,0.00013798,2]
[331752427,1720752662164,-2426.79704,0.00013798,2]
[331752428,1720752662173,-2426.79704,0.00013798,2]
[331752429,1720752662182,-509.90471346,0.00013798,2]
[331752430,1720752662191,-2426.797034,0.00013798,2]
[331752431,1720752662200,-500.0,0.00013798,2]
[331752432,1720752662210,-1927.78,0.00013798,2]
[331752433,1720752662219,-500.0,0.00013798,2]
[331752434,1720752662228,-501.83184222,0.00013798,2]
[331752435,1720752662238,-508.53869939,0.00013798,2]
[331752436,1720752662247,-503.82756105,0.00013798,2]
[331752437,1720752662256,-500.0,0.00013798,2]
[331752438,1720752662265,-500.53029822,0.00013798,2]
[331752439,1720752662275,-500.0,0.00013798,2]
[331752440,1720752662283,-556.48817319,0.00013798,2]
[331752441,1720752662293,-500.0,0.00013798,2]
[331752442,1720752662302,-1237.140025,0.00013798,2]
[331752443,1720752662311,-1237.140025,0.00013798,2]
[331752444,1720752662320,-1237.140025,0.00013798,2]
[331752445,1720752662330,-1237.140025,0.00013798,2]
[331752446,1720752662340,-500.0,0.00013798,2]
[331752447,1720752662349,-500.0,0.00013798,2]
[331752448,1720752662359,-500.0,0.00013798,2]
[331752449,1720752662369,-1237.140025,0.00013798,2]
[331752450,1720752662380,-500.0,0.00013798,2]
[331752451,1720752662390,-1237.140025,0.00013798,2]
[331752452,1720752662401,-1237.140025,0.00013798,2]
[331752453,1720752662411,-501.75953234,0.00013798,2]
[331752454,1720752662422,-1237.140022,0.00013798,2]
[331752455,1720752662433,-500.0,0.00013798,2]
[331752456,1720752662444,-500.0,0.00013798,2]
[331752457,1720752662454,-506.42799376,0.00013798,2]
[331752458,1720752662464,-500.0,0.00013798,2]
[331752459,1720752662476,-500.0,0.00013798,2]
[331752460,1720752662487,-501.00255168,0.00013798,2]
[331752461,1720752662497,-504.08352121,0.00013798,2]
[331752462,1720752662512,-1339.745831,0.00013798,2]
[331752463,1720752662522,-1339.745831,0.00013798,2]
[331752464,1720752662534,-1339.745831,0.00013798,2]
[331752465,1720752662546,-1339.745831,0.00013798,2]
[331752466,1720752662555,-500.0,0.00013798,2]
[331752467,1720752662564,-500.0,0.00013798,2]
[331752468,1720752662573,-500.0,0.00013798,2]
[331752469,1720752662582,-1339.745831,0.00013798,2]
[331752470,1720752662592,-1339.745831,0.00013798,2]
[331752471,1720752662601,-500.0,0.00013798,2]
[331752472,1720752662610,-1339.745831,0.00013798,2]
[331752473,1720752662619,-1339.745835,0.00013798,2]
[331752474,1720752662699,-501.68715419,0.00013798,2]
[331752475,1720752662716,-1788.75,0.00013798,2]
[331752476,1720752662726,-500.0,0.00013798,2]
[331752477,1720752662735,-503.83058546,0.00013798,2]
[331752478,1720752662744,-500.32265966,0.00013798,2]
[331752479,1720752662753,-500.0,0.00013798,2]
[331752480,1720752662762,-500.65895964,0.00013798,2]
[331752481,1720752662771,-505.8217001,0.00013798,2]
[331752482,1720752662780,-500.0,0.00013798,2]
[331752483,1720752662789,-500.0,0.00013798,2]
[331752484,1720752662798,-495.96189763,0.00013798,2]
[331752485,1720752662807,-152.679728,0.00013798,2]
[331752486,1720752662817,-152.679728,0.00013798,2]
[331752487,1720752662826,-152.679728,0.00013798,2]
[331752488,1720752662835,-152.679728,0.00013798,2]
[331752489,1720752662844,-1461.053028,0.00013798,2]
[331752490,1720752662854,-503.63750726,0.00013798,2]
[331752491,1720752662863,-1461.053028,0.00013798,2]
[331752492,1720752662873,-1461.053028,0.00013798,2]
[331752493,1720752662882,-351.124552,0.00013798,2]
[331752494,1720752662892,-1461.053028,0.00013798,2]
[331752495,1720752662901,-351.124552,0.00013798,2]
[331752496,1720752662910,-351.124552,0.00013798,2]
[331752497,1720752662921,-351.124552,0.00013798,2]
[331752498,1720752662930,-152.679728,0.00013798,2]
[331752499,1720752662940,-351.124552,0.00013798,2]
[331752500,1720752662949,-152.679728,0.00013798,2]
[331752501,1720752662959,-152.679728,0.00013798,2]
[331752502,1720752662968,-1461.053028,0.00013798,2]
[331752503,1720752662978,-152.679723,0.00013798,2]
[331752504,1720752662987,-1461.053028,0.00013798,2]
[331752505,1720752662996,-1461.053028,0.00013798,2]
[331752506,1720752663006,-1461.05303,0.00013798,2]
[331752507,1720752663015,-351.124552,0.00013798,2]
[331752508,1720752663024,-501.79049731,0.00013798,2]
[331752509,1720752663034,-500.0,0.00013798,2]
[331752510,1720752663043,-351.124552,0.00013798,2]
[331752511,1720752663052,-647.46505206,0.00013798,2]
[331752512,1720752663061,-351.124552,0.00013798,2]
[331752513,1720752663071,-351.124552,0.00013798,2]
[331752514,1720752663080,-351.124543,0.00013798,2]
[331752515,1720752663089,-500.0,0.00013798,2]
[331752516,1720752663098,-500.0,0.00013798,2]
[331752517,1720752663107,-500.0,0.00013798,2]
[331752518,1720752663116,-500.0,0.00013798,2]
[331752519,1720752663125,-500.0,0.00013798,2]
[331752520,1720752663134,-500.41629937,0.00013798,2]
[331752521,1720752663143,-500.0,0.00013798,2]
[331752522,1720752663152,-500.0,0.00013798,2]
[331752523,1720752663161,-506.47998101,0.00013798,2]
[331752524,1720752663172,-500.0,0.00013798,2]
[331752525,1720752663181,-500.0,0.00013798,2]
[331752526,1720752663191,-500.0,0.00013798,2]
[331752527,1720752663200,-500.0,0.00013798,2]
[331752528,1720752663211,-597.871708,0.00013798,2]
[331752529,1720752663220,-500.0,0.00013798,2]
[331752530,1720752663229,-597.871708,0.00013798,2]
[331752531,1720752663239,-597.871708,0.00013798,2]
[331752532,1720752663248,-597.871708,0.00013798,2]
[331752533,1720752663257,-500.0,0.00013798,2]
[331752534,1720752663266,-501.97632911,0.00013798,2]
[331752535,1720752663275,-597.871708,0.00013798,2]
[331752536,1720752663285,-500.0,0.00013798,2]
[331752537,1720752663294,-501.07388359,0.00013798,2]
[331752538,1720752663303,-597.871708,0.00013798,2]
[331752539,1720752663312,-597.871708,0.00013798,2]
[331752540,1720752663322,-502.11591625,0.00013798,2]
[331752541,1720752663331,-10000.0,0.00013798,2]
[331752542,1720752663341,-597.871709,0.00013798,2]
[331752543,1720752663350,-10000.0,0.00013798,2]
[331752544,1720752663360,-10000.0,0.00013798,2]
[331752545,1720752663370,-500.0,0.00013798,2]
[331752546,1720752663379,-10000.0,0.00013798,2]
[331752547,1720752663388,-500.0,0.00013798,2]
[331752548,1720752663398,-500.0,0.00013798,2]
[331752549,1720752663407,-10000.0,0.00013798,2]
[331752550,1720752663418,-644.09190024,0.00013798,2]
[331752551,1720752663427,-10000.0,0.00013798,2]
[331752552,1720752663437,-559.49736811,0.00013798,2]
[331752553,1720752663446,-10000.0,0.00013798,2]
[331752554,1720752663456,-10000.0,0.00013798,2]
[331752555,1720752663465,-500.0,0.00013798,2]
[331752556,1720752663475,-501.67415555,0.00013798,2]
[331752557,1720752663484,-500.0,0.00013798,2]
[331752558,1720752663494,-10000.0,0.00013798,2]
[331752559,1720752663507,-500.0,0.00013798,2]
[331752560,1720752663516,-500.0,0.00013798,2]
[331752561,1720752663526,-10000.0,0.00013798,2]
[331752562,1720752663535,-10000.0,0.00013798,2]
[331752563,1720752663545,-10000.0,0.00013798,2]
[331752564,1720752663555,-500.0,0.00013798,2]
[331752565,1720752663564,-3786.142131,0.00013798,2]
[331752566,1720752663573,-3786.142131,0.00013798,2]
[331752567,1720752663584,-10000.0,0.00013798,2]
[331752568,1720752663594,-3786.142131,0.00013798,2]
[331752569,1720752663603,-500.0,0.00013798,2]
[331752570,1720752663612,-10000.0,0.00013798,2]
[331752571,1720752663622,-502.401035,0.00013798,2]
[331752572,1720752663631,-3786.142131,0.00013798,2]
[331752573,1720752663641,-10000.0,0.00013798,2]
[331752574,1720752663651,-10000.0,0.00013798,2]
[331752575,1720752663660,-500.0,0.00013798,2]
[331752576,1720752663672,-3786.142131,0.00013798,2]
[331752577,1720752663682,-10000.0,0.00013798,2]
[331752578,1720752663691,-3786.142131,0.00013798,2]
[331752579,1720752663701,-10000.0,0.00013798,2]
[331752580,1720752663710,-3786.142131,0.00013798,2]
[331752581,1720752663720,-502.31465526,0.00013798,2]
[331752582,1720752663729,-10000.0,0.00013798,2]
[331752583,1720752663739,-3786.142124,0.00013798,2]
[331752584,1720752663748,-1224.721307,0.00013798,2]
[331752585,1720752663758,-500.0,0.00013798,2]
[331752586,1720752663767,-288.196988,0.00013798,2]
[331752587,1720752663777,-277.143365,0.00013798,2]
[331752588,1720752663786,-277.143365,0.00013798,2]
[331752589,1720752663795,-277.143365,0.00013798,2]
[331752590,1720752663804,-277.143365,0.00013798,2]
[331752591,1720752663814,-288.196996,0.00013798,2]
[331752592,1720752663823,-632.82952185,0.00013798,2]
[331752593,1720752663833,-500.0,0.00013798,2]
[331752594,1720752663843,-500.0,0.00013798,2]
[331752595,1720752663852,-313.87529218,0.00013798,2]
[331752596,1720752663861,-277.143365,0.00013798,2]
[331752597,1720752663871,-277.143365,0.00013798,2]
[331752598,1720752663880,-277.143365,0.00013798,2]
[331752599,1720752663890,-503.97815173,0.00013798,2]
[331752600,1720752663899,-277.143373,0.00013798,2]
[331752601,1720752663909,-500.0,0.00013798,2]
[331752602,1720752663919,-503.86885396,0.00013798,2]
[331752603,1720752663929,-322.469844,0.00013798,2]
[331752604,1720752663939,-322.469844,0.00013798,2]
[331752605,1720752663949,-500.0,0.00013798,2]
[331752606,1720752663959,-322.469844,0.00013798,2]
[331752607,1720752663968,-500.0,0.00013798,2]
[331752608,1720752663978,-500.91096155,0.00013798,2]
[331752609,1720752663988,-322.469844,0.00013798,2]
[331752610,1720752663997,-322.469844,0.00013798,2]
[331752611,1720752664007,-500.0,0.00013798,2]
[331752612,1720752664016,-500.0,0.00013798,2]
[331752613,1720752664025,-500.0,0.00013798,2]
[331752614,1720752664035,-423.446201,0.00013798,2]
[331752615,1720752664044,-502.45668829,0.00013798,2]
[331752616,1720752664054,-423.446201,0.00013798,2]
[331752617,1720752664063,-423.446201,0.00013798,2]
[331752618,1720752664072,-322.469844,0.00013798,2]
[331752619,1720752664082,-423.446201,0.00013798,2]
[331752620,1720752664091,-322.469844,0.00013798,2]
[331752621,1720752664101,-500.0,0.00013798,2]
[331752622,1720752664110,-322.469844,0.00013798,2]
[331752623,1720752664120,-322.469844,0.00013798,2]
[331752624,1720752664130,-322.46985,0.00013798,2]
[331752625,1720752664139,-506.07326544,0.00013798,2]
[331752626,1720752664148,-844.59333,0.00013798,2]
[331752627,1720752664158,-423.446201,0.00013798,2]
[331752628,1720752664168,-423.446201,0.00013798,2]
[331752629,1720752664178,-423.446201,0.00013798,2]
[331752630,1720752664187,-500.0,0.00013798,2]
[331752631,1720752664197,-423.446209,0.00013798,2]
[331752632,1720752664207,-500.0,0.00013798,2]
[331752633,1720752664217,-500.0,0.00013798,2]
[331752634,1720752664227,-844.593334,0.00013798,2]
[331752635,1720752664237,-7972.0602,0.00013798,2]
[331752636,1720752664247,-500.92788982,0.00013798,2]
[331752637,1720752664256,-503.76897653,0.00013798,2]
[331752638,1720752664265,-504.87058076,0.00013798,2]
[331752639,1720752664274,-7972.0602,0.00013798,2]
[331752640,1720752664284,-500.0,0.00013798,2]
[331752641,1720752664293,-501.26216517,0.00013798,2]
[331752642,1720752664303,-502.06326707,0.00013798,2]
[331752643,1720752664312,-500.33246641,0.00013798,2]
[331752644,1720752664321,-500.0,0.00013798,2]
[331752645,1720752664330,-500.0,0.00013798,2]
[331752646,1720752664340,-511.27269712,0.00013798,2]
[331752647,1720752664349,-637.52,0.00013798,2]
[331752648,1720752664358,-500.0,0.00013798,2]
[331752649,1720752664367,-500.0,0.00013798,2]
[331752650,1720752664377,-560.28317484,0.00013798,2]
[331752651,1720752664386,-1734.09578,0.00013798,2]
[331752652,1720752664395,-500.0,0.00013798,2]
[331752653,1720752664405,-629.8153896,0.00013798,2]
[331752654,1720752664414,-1734.09578,0.00013798,2]
[331752655,1720752664423,-500.0,0.00013798,2]
[331752656,1720752664432,-507.65471478,0.00013798,2]
[331752657,1720752664441,-500.0,0.00013798,2]
[331752658,1720752664451,-500.0,0.00013798,2]
[331752659,1720752664460,-501.50028307,0.00013798,2]
[331752660,1720752664469,-1388.88,0.00013798,2]
[331752661,1720752664478,-450.27559943,0.00013798,2]
[331752662,1720752664487,-501.77937466,0.00013798,2]
[331752663,1720752664498,-500.0,0.00013798,2]
[331752664,1720752664509,-501.65062633,0.00013798,2]
[331752665,1720752664518,-527.7119668,0.00013798,2]
[331752666,1720752664527,-503.36335655,0.00013798,2]
[331752667,1720752664536,-511.47768381,0.00013798,2]
[331752668,1720752664546,-500.0,0.00013798,2]
[331752669,1720752664555,-499.17177941,0.00013798,2]
[331752670,1720752664565,-500.0,0.00013798,2]
[331752671,1720752664577,-500.81331963,0.00013798,2]
[331752672,1720752664587,-500.0,0.00013798,2]
[331752673,1720752664596,-502.62295615,0.00013798,2]
[331752674,1720752664605,-291.62199316,0.00013798,2]
[331752675,1720752664616,-500.0,0.00013798,2]
[331752676,1720752664626,-500.0,0.00013798,2]
[331752677,1720752664635,-500.95980279,0.00013798,2]
[331752678,1720752664644,-500.0,0.00013798,2]
[331752679,1720752664653,-500.0,0.00013798,2]
[331752680,1720752664663,-13943.20320113,0.00013799,2]
[331752681,1720752664674,-361.23949189,0.00013799,2]
[331752682,1720752664683,-500.0,0.00013799,2]
[331752683,1720752664693,-500.0,0.00013799,2]
[331752684,1720752664702,-500.0,0.00013799,2]
[331752685,1720752664712,-151.0,0.00013799,2]
[331752686,1720752664721,-151.555798,0.00013799,2]
[331752687,1720752664731,-151.0,0.00013799,2]
[331752688,1720752664740,-151.335151,0.00013799,2]
[331752689,1720752664750,-151.0,0.00013799,2]
[331752690,1720752664759,-151.0,0.00013799,2]
[331752691,1720752664768,-151.0,0.00013799,2]
[331752692,1720752664777,-151.373477,0.00013799,2]
[331752693,1720752664786,-2000.0,0.00013799,2]
[331752694,1720752664796,-200.0,0.00013799,2]
[331752695,1720752664805,-500.0,0.00013799,2]
[331752696,1720752664916,-500.0,0.00013799,2]
[331752697,1720752664926,-151.0,0.00013799,2]
[331752698,1720752664935,-151.0,0.00013799,2]
[331752699,1720752664947,-296.91196825,0.00013799,2]
[331752700,1720752664957,-284.147089,0.00013799,2]
[331752701,1720752664966,-284.147089,0.00013799,2]
[331752702,1720752664975,-284.147089,0.00013799,2]
[331752703,1720752664986,-284.147089,0.00013799,2]
[331752704,1720752664995,-279.35,0.00013799,2]
[331752705,1720752665005,-279.35,0.00013799,2]
[331752706,1720752665015,-279.35,0.00013799,2]
[331752707,1720752665025,-279.35,0.00013799,2]
[331752708,1720752665034,-279.35,0.00013799,2]
[331752709,1720752665043,-279.35,0.00013799,2]
[331752710,1720752665055,-409.4,0.00013799,2]
[331752711,1720752665064,-409.4,0.00013799,2]
[331752712,1720752665074,-409.4,0.00013799,2]
[331752713,1720752665084,-409.4,0.00013799,2]
[331752714,1720752665095,-409.4,0.00013799,2]
[331752715,1720752665106,-409.4,0.00013799,2]
[331752716,1720752665116,-171.861668,0.00013799,2]
[331752717,1720752665125,-171.861668,0.00013799,2]
[331752718,1720752665136,-171.861668,0.00013799,2]
[331752719,1720752665145,-171.861668,0.00013799,2]
[331752720,1720752665154,-171.861668,0.00013799,2]
[331752721,1720752665163,-171.861668,0.00013799,2]
[331752722,1720752665174,-624.812235,0.00013799,2]
[331752723,1720752665183,-278.692934,0.00013799,2]
[331752724,1720752665192,-624.812235,0.00013799,2]
[331752725,1720752665201,-624.812235,0.00013799,2]
[331752726,1720752665210,-624.812235,0.00013799,2]
[331752727,1720752665219,-624.812235,0.00013799,2]
[331752728,1720752665228,-353.909412,0.00013799,2]
[331752729,1720752665237,-353.909412,0.00013799,2]
[331752730,1720752665247,-353.909412,0.00013799,2]
[331752731,1720752665256,-353.909412,0.00013799,2]
[331752732,1720752665266,-353.052221,0.00013799,2]
[331752733,1720752665275,-353.052221,0.00013799,2]
[331752734,1720752665285,-353.052221,0.00013799,2]
[331752735,1720752665294,-353.052221,0.00013799,2]
[331752736,1720752665304,-353.909412,0.00013799,2]
[331752737,1720752665314,-353.909412,0.00013799,2]
[331752738,1720752665323,-353.909412,0.00013799,2]
[331752739,1720752665334,-353.909412,0.00013799,2]
[331752740,1720752665343,-353.052221,0.00013799,2]
[331752741,1720752665353,-353.052221,0.00013799,2]
[331752742,1720752665362,-353.052221,0.00013799,2]
[331752743,1720752665372,-353.052221,0.00013799,2]
[331752744,1720752665381,-529.295634,0.00013799,2]
[331752745,1720752665390,-529.295634,0.00013799,2]
[331752746,1720752665399,-529.295634,0.00013799,2]
[331752747,1720752665409,-529.295634,0.00013799,2]
[331752748,1720752665421,-529.295634,0.00013799,2]
[331752749,1720752665430,-529.295634,0.00013799,2]
[331752750,1720752665439,-151.0,0.00013799,2]
[331752751,1720752665449,-529.295634,0.00013799,2]
[331752752,1720752665460,-151.0,0.00013799,2]
[331752753,1720752665471,-529.295634,0.00013799,2]
[331752754,1720752665481,-151.0,0.00013799,2]
[331752755,1720752665492,-151.0,0.00013799,2]
[331752756,1720752665504,-151.0,0.00013799,2]
[331752757,1720752665513,-151.0,0.00013799,2]
[331752758,1720752665524,-151.0,0.00013799,2]
[331752759,1720752665535,-161.782067,0.00013799,2]
[331752760,1720752665546,-151.0,0.00013799,2]
[331752761,1720752665556,-151.0,0.00013799,2]
[331752762,1720752665567,-151.0,0.00013799,2]